Cogmind - Beta 16 @@@ ROGUE MODE // 2025.12.27 @ 23:54:25 Player: Bity Result: Destroyed by G-50 Soldier with Heavy Laser Performance ------------- Evolutions (4) 2000 Regions Visited (4) 800 Robots Destroyed (33) 165 Value Destroyed (967) 967 Prototype IDs (14) 280 Alien Tech Used (0) 0 Bonus (800) 800 TOTAL SCORE: 5012 Bonus ------- Registered with UFD 300 Met Optimus in HQ 500 Cogmind --------- Core Integrity 0/850 Matter 242/300 Energy 144/150 System Corruption 1% Temperature Cool (21) Movement Flying (31) Location -6/Factory Parts ------- > --- POWER (2) -------- Micro Nuclear Core > --- PROPULSION (4) --- Nuclear Pulse Thruster Nuclear Pulse Thruster Nuclear Pulse Thruster Nuclear Pulse Thruster > --- UTILITY (6) ------ (None) > --- WEAPON (3) ------- (None) > --- INVENTORY (5) ---- Relay Coupler [Heavy] (4) Relay Coupler [Proto] (3) A0-MCA's Component Scanner Large Botcube Peak State ------------ > --- POWER ------------ Light Ion Engine Light Fission Core > --- PROPULSION ------- Wheel Wheel Wheel Overtuned Scrapsphere > --- UTILITY ---------- Light Humpback Seismic Detector Energy Filter > --- WEAPON ----------- Assault Rifle Advanced Assault Cannon Mini Grenade Launcher > --- INVENTORY -------- Scrap Suit Heat Sink Small Storage Unit Advanced Targeting Computer Relay Coupler [Specialist] Relay Coupler [Specialist] Relay Coupler [Heavy] Relay Coupler [Behemoth] Relay Coupler [Proto] A0-MCA's Component Scanner Arc Projector Plasma Rifle Proton Cannon Powered Cannon Assault Cannon DRS Beacon Large Botcube [Rating: 37] Favorites ----------- Power Light Ion Engine Engine Light Ion Engine Power Core Light Fission Core Propulsion Wheel Leg Aluminum Leg Wheel Wheel Flight Unit Nuclear Pulse Thruster Utility Light Humpback Device Seismic Detector Storage Light Humpback Weapon Assault Rifle Energy Gun Heavy Laser Energy Cannon Powered Cannon Ballistic Gun Assault Rifle Ballistic Cannon Advanced Assault Cannon Launcher Grenade Launcher Special Weapon Mining Laser Build | -11 -10 -10 -8 -6 ------- Run | Yrd Mat Sub Scr Fac Slots Evolved 8 | . . . . 8 Power 1 | . . . . 1 Propulsion 2 | . . . . 2 Utility 4 | . . . . 4 Weapon 1 | . . . . 1 Parts Attached 26 | 2 1 4 1 18 Power 4 | . . 1 . 3 Engine 2 | . . 1 . 1 Core 2 | . . . . 2 Reactor . | . . . . . Propulsion 11 | . . 2 . 9 Treads . | . . . . . Leg 2 | . . . . 2 Wheel 5 | . . 2 . 3 Hover . | . . . . . Flight 4 | . . . . 4 Utility 4 | 1 . . 1 2 Device 2 | 1 . . . 1 Storage 2 | . . . 1 1 Processor . | . . . . . Hackware . | . . . . . Protection . | . . . . . Artifact . | . . . . . Weapon 7 | 1 1 1 . 4 Energy Gun 1 | . . . . 1 Energy Cannon 1 | . . . . 1 Ballistic Gun 1 | 1 . . . . Ballistic Cannon 1 | . . . . 1 Launcher 2 | . 1 . . 1 Special Weapon 1 | . . 1 . . Impact Weapon . | . . . . . Slashing Weapon . | . . . . . Piercing Weapon . | . . . . . Special Melee Weapon . | . . . . . Unidentified Prototypes . | . . . . . Corrupted Parts 1 | . . . . 1 System Corruption 1 | . . . . 1 Parts Lost 19 | . . 2 . 17 Power 4 | . . 1 . 3 Propulsion 6 | . . . . 6 Utility 3 | . . . . 3 Weapon 6 | . . 1 . 5 Highest Loss Streak 11 | . . 2 . 11 To Critical Strikes . | . . . . . Average Backups 14 | 6 8 7 18 8 Power . | 1 1 . . . Propulsion 3 | 4 5 3 3 . Utility 5 | . . . 8 5 Weapon 5 | 1 1 2 7 3 Tool/Special . | . . . . . Unused Backups 21 | 3 . 1 4 13 Power . | . . . . . Propulsion 4 | 1 . 1 2 . Utility 9 | . . . . 9 Weapon 8 | 2 . . 2 4 Tool/Special . | . . . . . Average Slot Usage (%) 85 | . 100 99 85 49 Engine 12 | . 14 13 14 4 Leg 4 | . 28 10 . 1 Wheel 21 | . . 17 28 15 Device 4 | . 14 14 . 7 Storage 13 | . 14 14 14 4 Ballistic Gun 12 | . 15 11 14 2 Launcher 12 | . 12 14 14 2 Peak Build Rating 37 | 7 7 9 19 37 Average Rating 13 | 6 7 8 14 25 On Entrance 9 | 6 7 7 9 19 Avg Prop Armor Cover (%) 2 | . . . . 2 Naked Turns 9 | . . . . 9 Heaviest Build 65 | 14 16 16 48 65 Greatest Support 38 | 20 20 20 20 38 Greatest Overweight (x) 4 | . . . 2 4 Average Overweight (x) 1 | . . . 1 1 Largest Inventory Capacity 25 | 8 8 8 25 25 Average Capacity 19 | 8 8 8 24 15 Most Carried 25 | 8 8 8 25 24 Average Carried 16 | 6 8 7 21 11 Final Capacity 25 | 8 8 8 25 5 Final Carried 25 | 8 8 8 25 5 Class Distribution -------------------- 97% | Mutant Dominant Class ---------------- Mutant | -10/Materials Mutant | -10/Subcaves Mutant | -8/Scraptown Mutant | -6/Factory Resources | -11 -10 -10 -8 -6 ----------- Run | Yrd Mat Sub Scr Fac Matter Collected 953 | 276 118 66 209 284 Remotely . | . . . . . Salvage Created 1282 | 162 225 38 . 857 Parts 67 | 20 16 2 . 29 Haulers Intercepted . | . . . . . Recyclers Shooed 2 | . . . . 2 Parts Field Recycled . | . . . . . Retrieved Matter . | . . . . . Parts Self-Destructed . | . . . . . Prevented . | . . . . . Parts Restored . | . . . . . Kills | -11 -10 -10 -8 -6 ------- Run | Yrd Mat Sub Scr Fac Combat Hostiles Destroyed 18 | . 9 1 . 8 Guns 3 | . 2 . . 1 Cannons 4 | . . . . 4 AOE 11 | . 7 1 . 3 Classes Destroyed 8 | 2 2 1 . 3 Worker 1 | . . . . 1 Builder 3 | . . . . 3 Tunneler 5 | 5 . . . . Recycler 4 | 1 . . . 3 Watcher 2 | . 1 . . 1 Swarmer 2 | . . . . 2 Grunt 13 | . 9 . . 4 Sentry 3 | . . 1 . 2 Best Kill Streak 10 | 4 3 1 . 10 Combat Bots Only 4 | . 3 1 . 4 Max Kills in Single Turn 2 | 1 1 1 . 2 Gunslinging . | . . . . . Exploded 1 | . 1 1 . 1 Melee . | . . . . . Uniques/NPCs Destroyed . | . . . . . Combat | -11 -10 -10 -8 -6 -------- Run | Yrd Mat Sub Scr Fac Hostile Shots Fired 227 | . 23 6 . 198 Missed 68 | . 7 . . 61 Hits 159 | . 16 6 . 137 Projectile 159 | . 16 6 . 137 Critical Strikes 2 | . . . . 2 Damage Taken 2427 | . 207 203 . 2017 Core 938 | . 51 26 . 861 Absorbed by Shields . | . . . . . Core Remaining (%) 84 | 100 . . 69 . Volleys Fired 84 | 14 21 16 . 33 Largest 3 | 2 2 2 . 3 Hottest 100 | 40 50 100 . 90 Shots Fired 144 | 28 39 20 . 57 Gun 68 | 28 21 4 . 15 Cannon 35 | . . . . 35 Launcher 33 | . 18 8 . 7 Special 8 | . . 8 . . Kinetic 85 | 28 21 4 . 32 Thermal 26 | . . 8 . 18 Explosive 33 | . 18 8 . 7 Electromagnetic . | . . . . . Robot Hit Streak 12 | 10 7 4 . 12 Robot Miss Streak 5 | 2 1 . . 5 Penetration Max . | . . . . . Secondary Targets . | . . . . . Shots Hit Robots 58 | 18 7 1 . 32 Core Hits 71 | 10 18 3 . 40 Critical Kills 1 | . . . . 1 Critical Parts Destroyed . | . . . . . Critical Strikes 1 | . . . . 1 Meltdown 1 | . . . . 1 Melee Attacks . | . . . . . Impact . | . . . . . Slashing . | . . . . . Piercing . | . . . . . Sneak Attacks . | . . . . . Combat Hostiles . | . . . . . Follow-up Attacks . | . . . . . Damage Inflicted 2778 | 185 678 25 . 1890 Guns 380 | 185 92 . . 103 Cannons 920 | . . . . 920 Explosions 1478 | . 586 25 . 867 Melee . | . . . . . Ramming . | . . . . . Kinetic 685 | 185 92 . . 408 Thermal 615 | . . . . 615 Explosive 1240 | . 586 25 . 629 Electromagnetic 238 | . . . . 238 Impact . | . . . . . Slashing . | . . . . . Piercing . | . . . . . Highest Corruption 1 | . . . . 1 Average Corruption 1 | . . . . 1 Corruption Purged . | . . . . . Corruption Blocked . | . . . . . Effects 1 | . . . . 1 Matter Fused 1 | . . . . 1 Overload Shots . | . . . . . Overflow Damage 70 | . . 2 . 68 Projectiles 63 | . . . . 63 Explosions 7 | . . 2 . 5 Melee . | . . . . . Knockbacks 1 | . . . . 1 Impact . | . . . . . Kinetic 1 | . . . . 1 Secondary . | . . . . . Self-Inflicted Damage 47 | . . 37 . 10 Shots 3 | . . 1 . 2 Rammed . | . . . . . Targets Rammed . | . . . . . Kicked . | . . . . . Crushed . | . . . . . Highest Temperature 247 | . 12 . . 247 Average Temperature 97 | . 3 . . 110 Received Heat Transfer 789 | . 117 18 . 654 Siege Activations . | . . . . . Martial Activations . | . . . . . Shielding Activations . | . . . . . Robots Disrupted . | . . . . . Combat Hostiles . | . . . . . Robots Corrupted 1 | . . . . 1 Combat Hostiles . | . . . . . Parts Fried 3 | . . . . 3 Impact Corruptions . | . . . . . Robots Melted 1 | . . . . 1 Combat Hostiles . | . . . . . Parts Melted 2 | . . . . 2 Heat Transferred . | . . . . . Parts Sabotaged . | . . . . . Parts Stolen . | . . . . . Parts Stripped . | . . . . . Power Chain Reactions 1 | . . . . 1 Alert | -11 -10 -10 -8 -6 ------- Run | Yrd Mat Sub Scr Fac Maximum Alert Level 1 | . 1 . . 1 Low Security (%) 73 | 100 56 . . 80 Level 1 26 | . 43 . . 19 Level 2 . | . . . . . Level 3 . | . . . . . Level 4 . | . . . . . Level 5 . | . . . . . High Security . | . . . . . Max Security . | . . . . . Peak Influence 265 | 10 246 . . 265 Initial . | . . . . . Average 117 | 3 152 . . 121 Influence Increases 793 | 30 346 20 . 397 Destroy 0b10 Robot/C 360 | . 180 20 . 160 Destroy 0b10 Robot/NC 75 | 30 5 . . 40 Destroy Leader 64 | . 42 . . 22 Allied During Kill 5 | . . . . 5 Successful Hack 20 | . 20 . . . Disable Machine 150 | . 15 . . 135 Destroy Structure 104 | . 84 . . 20 Lose Combat Pursuer 15 | . . . . 15 Influence Decreases 716 | 30 150 216 . 320 Entered New Map 95 | . . 95 . . Time Decay 431 | 30 150 121 . 130 Lost Part 170 | . . . . 170 Lost Ally 20 | . . . . 20 Squads Dispatched 4 | . 2 . . 2 Investigation 2 | . 2 . . . Extermination . | . . . . . Reinforcement 2 | . . . . 2 Assault . | . . . . . Garrison . | . . . . . Intercept . | . . . . . Searches Triggered . | . . . . . Construction Impeded 2 | . . . . 2 Haulers Reinforced . | . . . . . Active Scanning Responses . | . . . . . Cargo Convoy Interrupts . | . . . . . Stealth | -11 -10 -10 -8 -6 --------- Run | Yrd Mat Sub Scr Fac Distress Signals 2 | . . . . 2 Communications Jammed . | . . . . . Distress Signals . | . . . . . Times Spotted 32 | . 10 2 . 20 Peak Tracking Total 7 | . 3 1 . 7 Tactical Retreats 1 | . . . . 1 Traps | -11 -10 -10 -8 -6 ------- Run | Yrd Mat Sub Scr Fac Traps Triggered 4 | . . 1 . 3 Indirectly 3 | . . . . 3 Trap Hack Attempts . | . . . . . Triggered . | . . . . . Disarmed . | . . . . . Reprogrammed . | . . . . . Reused . | . . . . . Traps Extracted . | . . . . . Installed . | . . . . . Triggered . | . . . . . Machines | -11 -10 -10 -8 -6 ---------- Run | Yrd Mat Sub Scr Fac Machines Disabled 11 | . 1 1 . 9 Max in Single Turn 4 | . 1 1 . 4 Machines Repaired . | . . . . . Machines Dismantled . | . . . . . Machines Sabotaged . | . . . . . Overloaded Fab Kills . | . . . . . Hacking | -11 -10 -10 -8 -6 --------- Run | Yrd Mat Sub Scr Fac Machines Accessed 12 | . 3 1 6 2 Terminals 4 | . 3 . . 1 Fabricators . | . . . . . Repair Stations 1 | . . . . 1 Recycling Units . | . . . . . Scanalyzers . | . . . . . Garrison Access . | . . . . . Total Hacks 68 | . 15 9 41 3 Successful 62 | . 11 9 41 1 Failed 6 | . 4 . . 2 Catastrophic . | . . . . . Database Lockouts . | . . . . . Manual 13 | . 13 . . . Terminals 16 | . 15 . . 1 Fabricators . | . . . . . Repair Stations 2 | . . . . 2 Recycling Units . | . . . . . Scanalyzers . | . . . . . Garrison Access . | . . . . . Terminal Hacks 56 | . 5 9 41 1 Record 49 | . . 8 41 . Prototype ID Bank 1 | . 1 . . . Open DSF 1 | . . . . 1 Terminal Index 1 | . 1 . . . Recall Reinforcements 1 | . 1 . . . Zone Layout 2 | . 2 . . . Proto ID Catalog 1 | . . 1 . . Fabricator Hacks . | . . . . . Repair Station Hacks . | . . . . . Recycling Unit Hacks . | . . . . . Scanalyzer . | . . . . . Garrison Access Hacks . | . . . . . Unauthorized Hacks 6 | . 6 . . . Terminals 6 | . 6 . . . Track 2 | . 2 . . . Botnet 3 | . 3 . . . Operators 1 | . 1 . . . Fabricators . | . . . . . Repair Stations . | . . . . . Recycling Units . | . . . . . Scanalyzers . | . . . . . Garrison Access . | . . . . . Data Cores Recovered . | . . . . . Used . | . . . . . Hacking Detections 3 | . 2 . . 1 Full Trace Events 2 | . 2 . . . Feedback Events . | . . . . . Feedback Blocked . | . . . . . Robot Schematics Acquired . | . . . . . Robots Built . | . . . . . Authchips . | . . . . . Time . | . . . . . Total Robot Build Rating . | . . . . . Part Schematics Acquired . | . . . . . Parts Built . | . . . . . Authchips . | . . . . . Time . | . . . . . Total Part Build Rating . | . . . . . Part Studies Acquired . | . . . . . Parts Repaired . | . . . . . Time . | . . . . . Parts Recycled . | . . . . . Recycled Matter . | . . . . . Retrieved Matter . | . . . . . Retrieved Components . | . . . . . Parts Scanalyzed . | . . . . . Part Schematics Acquired . | . . . . . Parts Damaged . | . . . . . Bothacking | -11 -10 -10 -8 -6 ------------ Run | Yrd Mat Sub Scr Fac Used RIF Installer . | . . . . . Robots Hacked . | . . . . . Non-combat . | . . . . . Combat . | . . . . . Robot Hacks Applied . | . . . . . Relay Couplers Released . | . . . . . Fabnet Peak Effective % . | . . . . . Robots Rewired . | . . . . . Allies Hacked . | . . . . . Hacks Repelled . | . . . . . Allies | -11 -10 -10 -8 -6 -------- Run | Yrd Mat Sub Scr Fac Total Allies 1 | . . . . 1 Largest Group 1 | . . . . 1 Highest-Rated Group 66 | . . . . 66 Highest-Rated Ally 66 | . . . . 66 Total Orders . | . . . . . Ally Attacks 5 | . . . . 5 Total Damage 193 | . . . . 193 Kills . | . . . . . Allies Corrupted . | . . . . . Allies Melted . | . . . . . Intel | -11 -10 -10 -8 -6 ------- Run | Yrd Mat Sub Scr Fac Active Infowar (turns) 1156 | 96 337 495 18 210 Seismic 1156 | 96 337 495 18 210 Robot Analysis Total . | . . . . . Derelict Logs Recovered 2 | . . 1 1 . Drone Launches . | . . . . . Drone Recoveries . | . . . . . Exploration | -11 -10 -10 -8 -6 ------------- Run | Yrd Mat Sub Scr Fac Turns Passed 3323 | 113 337 495 2055 323 Spaces Moved 2633 | 30 162 417 1831 193 Core 22 | . . . . 22 Treads . | . . . . . Legs 315 | 30 162 85 . 38 Wheels 2283 | . . 332 1831 120 Hover . | . . . . . Flight 13 | . . . . 13 Fastest Speed 31 | 120 120 80 80 31 Average Speed 106 | 120 120 88 109 102 Slowest Speed 250 | 120 120 120 110 250 Overloaded Moves . | . . . . . Propulsion Burnouts . | . . . . . Robots Hopped . | . . . . . Potential Cave-ins 5 | . 5 . . . Cave-ins Triggered . | . . . . . Exploration Rate (%) 30 | 3 25 25 92 8 Regions Visited 4 Branch Regions 2 Pre-discovered Areas 2 | . . . 2 . Known Exits Taken . | . . . . . Unknown Exits Taken 4 | 1 1 1 1 . Scrap Searched 4 | . . . 4 . Spaces Dug 37 | . 22 15 . . Terrain Destroyed 181 | . 129 37 . 15 Melee . | . . . . . Projectile 2 | . . . . 2 AOE 179 | . 129 37 . 13 Terrain Rammed . | . . . . . Walls Destroyed . | . . . . . Machines Disabled . | . . . . . Actions | -11 -10 -10 -8 -6 --------- Run | Yrd Mat Sub Scr Fac Total 2997 | 84 265 504 1880 264 Wait 201 | 31 80 62 21 7 Move 2629 | 29 161 416 1830 193 Hop . | . . . . . Pick Up 37 | 5 1 3 22 6 Fast Attach 14 | 1 . . 1 12 Attach 10 | . . 2 . 8 Detach 2 | . . . . 2 Swap 5 | 1 1 3 . . Drop 15 | 3 1 2 6 3 Fire 84 | 14 21 16 . 33 Melee . | . . . . . Ram . | . . . . . Kick . | . . . . . Crush . | . . . . . Escape Stasis . | . . . . . Rewire . | . . . . . Trap . | . . . . . Miscellaneous . | . . . . . Route ------- -11/Scrapyard -10/Materials (discovered 3 exits: [Mat] / [*Min] / *Sub) -10/Subcaves (discovered 2 exits: [*Mat] / *Scr) -8/Scraptown (discovered 2 exits: *Fac x2) -6/Factory History --------- Turn | Location | Event 14 | -11/Scrapyard | Discovered new exit (range 3) 114 | -11/Scrapyard | Entered Materials 209 | -10/Materials | Discovered new exit (range 14) 293 | -10/Materials | Discovered new exit (range 6) 303 | -10/Materials | Build established: Mutant 430 | -10/Materials | Discovered new exit (range 9) 451 | -10/Materials | Entered Subcaves 452 | -10/Subcaves | Approached by a straggling Scientist 537 | -10/Subcaves | Shifting Twisted Machinery released Piercing Trap 609 | -10/Subcaves | Visited 4L-MR0's lab 611 | -10/Subcaves | Learned location of 1 exit from Materials 643 | -10/Subcaves | Found Powered Cannon 688 | -10/Subcaves | A swath of the cavern ceiling suddenly collapsed 874 | -10/Subcaves | Discovered new exit (range 6) 937 | -10/Subcaves | Scientist uncovered a shortcut to Scraptown 946 | -10/Subcaves | Entered Scraptown 1238 | -8/Scraptown | Scanned Subdweller tech in exchange for log data 1242 | -8/Scraptown | Learned location of Extension (-6) 1275 | -8/Scraptown | Visited The Evicted 1303 | -8/Scraptown | Visited TADAMA 1403 | -8/Scraptown | Visited Red Mages 1437 | -8/Scraptown | Found Relay Coupler [Proto] 1473 | -8/Scraptown | Visited Assassins FH 1515 | -8/Scraptown | Visited Shadow of the Wyrm 1592 | -8/Scraptown | Visited Symbiants 1641 | -8/Scraptown | Discovered new exit (range 11) 1771 | -8/Scraptown | Visited Comm Corps 2029 | -8/Scraptown | Visited UFD Registry 2029 | -8/Scraptown | Registered with UFD as "Gearflow" 2065 | -8/Scraptown | Visited Derelict Rescue Squad 2077 | -8/Scraptown | Found DRS Beacon 2104 | -8/Scraptown | Visited Observation Area 2177 | -8/Scraptown | Visited A0-MCA Data Center 2184 | -8/Scraptown | Given a B rating by A0-MCA 2186 | -8/Scraptown | Found A0-MCA's Component Scanner 2207 | -8/Scraptown | Visited Junk Repository 2295 | -8/Scraptown | Visited LU-1G1's Boring Crew 2354 | -8/Scraptown | Visited Scrapoid Pod Storage 2388 | -8/Scraptown | Visited Scrap Suit Storage 2402 | -8/Scraptown | Found Scrap Suit 2423 | -8/Scraptown | Visited Botcube Research 2440 | -8/Scraptown | Found Lrg. Botcube 2830 | -8/Scraptown | Discovered new exit (range 3) 2904 | -8/Scraptown | Met Optimus 2904 | -8/Scraptown | Accepted into 0bPrime 3001 | -8/Scraptown | Entered Factory 3001 | -6/Factory | Evolved 8 slots: Power x1, Propulsion x2, Utility x4, Weapon x1 3009 | -6/Factory | Identified exit to DSF 3164 | -6/Factory | Lrg. Botcube activated 3166 | -6/Factory | Attached Powered Cannon, gained temporary slot: Power 3182 | -6/Factory | Lrg. Botcube completed mutation into treaded form, armed with 3 guns, 1 cannon. 3201 | -6/Factory | Lost 5 parts (2n1u2w) 3235 | -6/Factory | Found Lrg. Botcube 3237 | -6/Factory | Core integrity fell below 50% 3254 | -6/Factory | Core integrity fell below 20% 3291 | -6/Factory | Lost 11 parts (3p4n2u2w) 3324 | -6/Factory | Destroyed by G-50 Soldier with Heavy Laser Last Messages --------------- 03255_ U-05 Engineer lays Concrete. 03258_ K-01 Serf collects debris. 03258_ U-05 Engineer lays Concrete. 03260_ Penetrated by Slug. 03260_ Imp. Ion Engine destroyed. 03260_ Carbon-fiber Leg destroyed. 03260_ U-05 Engineer lays Concrete. 03261_ Acquired Hvy. Laser. 03264_ Acquired Flexi-carbon Leg. 03266_ Acquired 41 matter. 03266_ Slug penetrates Wall. 03267_ Acquired 22 matter. 03276_ Acquired Mic. Nuclear Core. 03290_ System corrupted: Matter fused (-8). 03313_ Acquired Nuclear Pulse Thruster. 03315_ Dropped Sml. Storage Unit. 03315_ Dropped Hvy. Laser. 03316_ Acquired Nuclear Pulse Thruster. 03319_ Slug penetrates Wall. 03320_ Acquired Nuclear Pulse Thruster. Map ----- +----------------------------------------------------+ | ?????????????????????????????????????????????????? | | ?????????????????????????????????????????????????? | | ?????????????????????????????????????????????????? | | ?????????????????????????????????????????????????? | | ?????????????????????????????????????????????????? | | ?????????????????????????????????????????????????? | | ????????????????? ???????????????????????????????? | | ????????????????? ? ???????????????????????????? | | ????????????????? ?????????????????????????? | | ????????????????? ???????????????????????? | | ???????????????? #??????????????????????? | | ???????????????? #??????????????????????? | | ???????????????? #??????????????????????? | | ???????????????? #??????????????????????? | | ???????????????? ###????????????????????? | | ???????????????? ?????????????????????? | | ???????????????? ????????????????????? | | ????????######## ????????????????????? | | ????????# ???????????????????? | | ????????# ???????????????????? | | ????????# #??????????????????????? | | ????????# ###g###########??????????????????????? | | ????????# # g #??????????????????????? | | ???????# # =[ #??????????????????????? | | #/####### # ==!& #??????????????????????? | | # = @#??????????????????????? | | # = = #??????????????????????? | | # ! #?????????????????? ???? | | ########/##################??###############"##### | | ??????# #?????????# % | | ??????# ########### | | ??????# * # + !] % | | ??????# # """"" # !] % | | ??????# """ """ # """"" # ! % | | ??????# """ """ # "" F" # % # | | ??????# """ """ # * # % " | | ??????# # %!%%# # | | ??????# """ """ # """ #! [ % # | | ??????# """ """ / """ [=/ % =! + | | ??????# """ """ # """"""!#!! *% % ! # | | ??????# # """"""=#! !!% # | | ??????############## ## ## ###########+### | | ???????????????????# #### #????# ? | | ???????????????????# !! #??# +????# | | ???????????????????# !! #??## # ???# | | ???????????????????# !! !#???# #?[??# | | ???????????????????# #???# #?[[?# | | ???????????????????###########???# #?? # | | ?????????????????????????????????# #??? # | | ?????????????????????????????????# #????# | +----------------------------------------------------+ Best States ------------- Heat Dissipation 37 Energy Generation 23 Energy Capacity 265 Matter Stores 300 Matter Capacity 300 Sight Range 16 Terrain Scan Density 10 Evasion (%) 55 Energy Filtering 30 Item Schematics ----------------- None Robot Schematics ------------------ None Fabricated ------------ Nothing Repaired ---------- Nothing Studied --------- None Alien Tech Used ----------------- None Achievements -------------- Frankenstein Challenges ------------ None Game ------ Seed LayeredFieldWings Manual? 0 Play Time 00:29:21 Cumulative 39.6 hours Start 2025.12.27 @ 23:28:07 End 2025.12.27 @ 23:54:25 Sessions 1 Manual Loads 0 Difficulty Rogue Special Mode None Game No. 51 Rogue 51 Adventurer 0 Explorer 0 Win Type - Total 1 Types 1/0/0/0/0/0/0/0/0/0 Lore% 33 Gallery% 41 Achievement% 33 Wizard Run 0 Options --------- Layout 2 ASCII 0 Keyboard 1 Movement Numpad Keybinds 0 Fullscreen 1 Font 24/Smallcaps Map View 50x44 Zoom Use 0% Tactical HUD 1 Map Filters NONE Filters NONE Steam 1 RUN: fe8233f3-9705-4ef6-b314-c145d9e82ad9